fUST/lending_fUST_20250116
["ID","MTS","AMOUNT","RATE_DAILY","PERIOD"]
[349180147,1737016249011,-585.22,0.00020684,3]
[349180148,1737016249022,-2630.12,0.00020684,3]
[349180149,1737016249033,-500.0,0.00020684,3]
[349180150,1737016249043,-1340.87,0.00020684,3]
[349180151,1737016249053,-3741.69,0.00020684,3]
[349180152,1737016249063,-33251.21,0.00020684,3]
[349180153,1737016249077,-901.68,0.00020684,3]
[349180154,1737016249092,-14765.7,0.00020684,3]
[349180155,1737016249108,-151.0,0.00020684,2]
[349180156,1737016249120,-837.12,0.00020684,3]
[349180157,1737016249134,-1363.77,0.00020684,3]
[349180158,1737016249148,-500.0,0.00020684,3]
[349180159,1737016249163,-980.91,0.00020684,3]
[349180160,1737016249176,-9866.55,0.00020684,3]
[349180161,1737016249192,-8869.94,0.00020684,3]
[349180162,1737016249206,-598.49,0.00020684,3]
[349180163,1737016249219,-1696.36,0.00020684,3]
[349180164,1737016249233,-500.0,0.00020684,3]
[349180165,1737016249246,-566.72,0.00020684,3]
[349180166,1737016249260,-408.022755,0.00020685,2]
[349180167,1737016249274,-3805.04888805,0.00020728,2]
[349180168,1737016249287,-152.302036,0.00020728,2]
[349180169,1737016249298,-254.0,0.0002074,3]
[349180170,1737016249312,-408.022755,0.00020767,2]
[349180171,1737016249326,-340.75366526,0.0002079,2]
[349180172,1737016249340,-500.0,0.00020821,3]
[349180173,1737016249355,-500.0,0.00020821,3]
[349180174,1737016249370,-500.0,0.00020821,3]
[349180175,1737016249385,-500.0,0.00020821,3]
[349180176,1737016249399,-964.82,0.00020821,3]
[349180177,1737016249413,-500.0,0.00020821,3]
[349180178,1737016249423,-2173.0,0.00020821,3]
[349180179,1737016249434,-151.0,0.00020821,2]
[349180180,1737016249445,-547.14,0.00020821,3]
[349180181,1737016249461,-908.65,0.00020821,3]
[349180182,1737016249474,-500.0,0.00020821,3]
[349180183,1737016249486,-500.0,0.00020821,3]
[349180184,1737016249498,-694.8,0.00020821,3]
[349180185,1737016249511,-500.0,0.00020821,3]
[349180186,1737016249524,-500.0,0.00020821,3]
[349180187,1737016249537,-500.0,0.00020821,3]
[349180188,1737016249549,-262.29632673,0.00020821,3]
[349180189,1737016249561,-500.0,0.00020821,3]
[349180190,1737016249572,-518.64,0.00020821,3]
[349180191,1737016249584,-500.0,0.00020821,3]
[349180192,1737016249596,-500.0,0.00020821,3]
[349180193,1737016249608,-822.02,0.00020821,3]
[349180194,1737016249621,-500.0,0.00020821,3]
[349180195,1737016249632,-500.0,0.00020821,3]
[349180196,1737016249647,-654.19,0.00020821,2]
[349180197,1737016249659,-500.0,0.00020821,3]
[349180198,1737016249672,-500.0,0.00020821,3]
[349180199,1737016249683,-532.07,0.00020821,3]
[349180200,1737016249695,-500.0,0.00020821,3]
[349180201,1737016249708,-3423.9,0.00020821,3]
[349180202,1737016249724,-1355.4,0.00020821,3]
[349180203,1737016249737,-500.0,0.00020821,3]
[349180204,1737016249750,-11423.92,0.00020821,3]
[349180205,1737016249765,-23282.56,0.00020821,3]
[349180206,1737016249777,-620.9527886,0.00020821,3]
[349180207,1737016249789,-671.91,0.00020821,3]
[349180208,1737016249803,-500.0,0.00020821,3]
[349180209,1737016249814,-1061.4,0.00020821,3]
[349180210,1737016249826,-613.69,0.00020821,3]
[349180211,1737016249838,-548.68,0.00020821,3]
[349180212,1737016249850,-500.0,0.00020821,3]
[349180213,1737016249862,-500.0,0.00020821,3]
[349180214,1737016249873,-500.0,0.00020821,3]
[349180215,1737016249886,-740.28,0.00020821,3]
[349180216,1737016249898,-2359.74,0.00020821,3]
[349180217,1737016249909,-7640.34,0.00020821,3]
[349180218,1737016249921,-612.56,0.00020821,3]
[349180219,1737016249931,-1464.42,0.00020821,3]
[349180220,1737016249942,-1199.38,0.00020821,3]
[349180221,1737016249951,-2138.3,0.00020821,3]
[349180222,1737016249961,-3527.66,0.00020821,3]
[349180223,1737016249971,-500.0,0.00020821,3]
[349180224,1737016249981,-500.0,0.00020821,3]
[349180225,1737016249991,-3028.79,0.00020821,3]
[349180226,1737016250000,-596.75,0.00020821,3]
[349180227,1737016250010,-794.43,0.00020821,3]
[349180228,1737016250020,-955.41,0.00020821,3]
[349180229,1737016250029,-585.22,0.00020821,3]
[349180230,1737016250039,-2630.12,0.00020821,3]
[349180231,1737016250048,-500.0,0.00020821,3]
[349180232,1737016250058,-1340.87,0.00020821,3]
[349180233,1737016250067,-3741.69,0.00020821,3]
[349180234,1737016250077,-33251.21,0.00020821,3]
[349180235,1737016250086,-901.68,0.00020821,3]
[349180236,1737016250096,-14765.7,0.00020821,3]
[349180237,1737016250105,-837.12,0.00020821,3]
[349180238,1737016250115,-1363.77,0.00020821,3]
[349180239,1737016250124,-500.0,0.00020821,3]
[349180240,1737016250134,-980.91,0.00020821,3]
[349180241,1737016250143,-9866.55,0.00020821,3]
[349180242,1737016250153,-8869.94,0.00020821,3]
[349180243,1737016250162,-598.49,0.00020821,3]
[349180244,1737016250172,-1696.36,0.00020821,3]
[349180245,1737016250181,-500.0,0.00020821,3]
[349180246,1737016250190,-566.72,0.00020821,3]
[349180247,1737016250200,-265.70845281,0.00020822,5]
[349180248,1737016250209,-150.34247437,0.00020822,5]
[349180249,1737016250220,-500.0,0.00020822,5]
[349180250,1737016250230,-500.0,0.00020822,5]
[349180251,1737016250240,-408.022755,0.00020849,2]
[349180252,1737016250249,-3805.04888805,0.00020866,2]
[349180253,1737016250260,-151.09899879,0.00020888,2]
[349180254,1737016250453,-420.0,0.00020899,2]
[349180255,1737016250468,-12075.54,0.000209,2]
[349180256,1737016250479,-3144.44,0.000209,2]
[349180257,1737016250489,-632.0,0.000209,9]
[349180258,1737016250499,-500.0,0.00020926,2]
[349180259,1737016250509,-408.022755,0.00020932,2]
[349180260,1737016250518,-500.0,0.00020958,3]
[349180261,1737016250527,-500.0,0.00020958,3]
[349180262,1737016250536,-500.0,0.00020958,3]
[349180263,1737016250545,-500.0,0.00020958,3]
[349180264,1737016250555,-964.82,0.00020958,3]
[349180265,1737016250564,-500.0,0.00020958,3]
[349180266,1737016250573,-2173.0,0.00020958,3]
[349180267,1737016250583,-547.14,0.00020958,3]
[349180268,1737016250592,-908.65,0.00020958,3]
[349180269,1737016250601,-500.0,0.00020958,3]
[349180270,1737016250611,-500.0,0.00020958,3]
[349180271,1737016250622,-694.8,0.00020958,3]
[349180272,1737016250631,-500.0,0.00020958,3]
[349180273,1737016250641,-500.0,0.00020958,3]
[349180274,1737016250651,-500.0,0.00020958,3]
[349180275,1737016250660,-500.0,0.00020958,3]
[349180276,1737016250670,-518.64,0.00020958,3]
[349180277,1737016250679,-500.0,0.00020958,3]
[349180278,1737016250689,-500.0,0.00020958,3]
[349180279,1737016250698,-822.02,0.00020958,3]
[349180280,1737016250707,-500.0,0.00020958,3]
[349180281,1737016250721,-500.0,0.00020958,3]
[349180282,1737016250731,-654.19,0.00020958,2]
[349180283,1737016250740,-500.0,0.00020958,3]
[349180284,1737016250750,-500.0,0.00020958,3]
[349180285,1737016250762,-532.07,0.00020958,3]
[349180286,1737016250772,-500.0,0.00020958,3]
[349180287,1737016250782,-3423.9,0.00020958,3]
[349180288,1737016250793,-1355.4,0.00020958,3]
[349180289,1737016250803,-500.0,0.00020958,3]
[349180290,1737016250813,-11423.92,0.00020958,3]
[349180291,1737016250822,-23282.56,0.00020958,3]
[349180292,1737016250832,-671.91,0.00020958,3]
[349180293,1737016250841,-500.0,0.00020958,3]
[349180294,1737016250850,-1061.4,0.00020958,3]
[349180295,1737016250860,-613.69,0.00020958,3]
[349180296,1737016250870,-548.68,0.00020958,3]
[349180297,1737016250880,-500.0,0.00020958,3]
[349180298,1737016250889,-500.0,0.00020958,3]
[349180299,1737016250899,-500.0,0.00020958,3]
[349180300,1737016250908,-740.28,0.00020958,3]
[349180301,1737016250917,-2359.74,0.00020958,3]
[349180302,1737016250926,-7640.34,0.00020958,3]
[349180303,1737016250935,-612.56,0.00020958,3]
[349180304,1737016250945,-1464.42,0.00020958,3]
[349180305,1737016250954,-1199.38,0.00020958,3]
[349180306,1737016250963,-2138.3,0.00020958,3]
[349180307,1737016250972,-3527.66,0.00020958,3]
[349180308,1737016250982,-500.0,0.00020958,3]
[349180309,1737016250992,-452.82935033,0.00020958,3]
[349180310,1737016251002,-226.35989,0.00020958,2]
[349180311,1737016251012,-3028.79,0.00020958,3]
[349180312,1737016251022,-596.75,0.00020958,3]
[349180313,1737016251032,-794.43,0.00020958,3]
[349180314,1737016251042,-955.41,0.00020958,3]
[349180315,1737016251051,-585.22,0.00020958,3]
[349180316,1737016251061,-2630.12,0.00020958,3]
[349180317,1737016251071,-500.0,0.00020958,3]
[349180318,1737016251081,-1340.87,0.00020958,3]
[349180319,1737016251091,-3741.69,0.00020958,3]
[349180320,1737016251101,-33251.21,0.00020958,3]
[349180321,1737016251111,-901.68,0.00020958,3]
[349180322,1737016251120,-14765.7,0.00020958,3]
[349180323,1737016251130,-151.0,0.00020958,2]
[349180324,1737016251140,-837.12,0.00020958,3]
[349180325,1737016251149,-1363.77,0.00020958,3]
[349180326,1737016251159,-500.0,0.00020958,3]
[349180327,1737016251168,-980.91,0.00020958,3]
[349180328,1737016251178,-9866.55,0.00020958,3]
[349180329,1737016251187,-8869.94,0.00020958,3]
[349180330,1737016251197,-598.49,0.00020958,3]
[349180331,1737016251206,-1696.36,0.00020958,3]
[349180332,1737016251216,-500.0,0.00020958,3]
[349180333,1737016251225,-566.72,0.00020958,3]
[349180334,1737016251237,-10000.0,0.00021,5]
[349180335,1737016251246,-3080.7390592,0.00021,2]
[349180336,1737016251256,-3156.39339748,0.00021,2]
[349180337,1737016251267,-1000.0,0.00021,21]
[349180338,1737016251277,-1000.0,0.00021,4]
[349180339,1737016251286,-3000.0,0.00021,2]
[349180340,1737016251295,-3805.04888805,0.00021003,2]
[349180341,1737016251305,-3000.0,0.0002101,2]
[349180342,1737016251315,-408.022755,0.00021014,2]
[349180343,1737016251324,-3000.0,0.0002102,2]
[349180344,1737016251334,-3000.0,0.0002103,2]
[349180345,1737016251344,-3000.0,0.0002104,2]
[349180346,1737016251354,-3000.0,0.0002105,2]
[349180347,1737016251363,-151.0,0.0002105,2]
[349180348,1737016251372,-3000.0,0.0002106,2]
[349180349,1737016251382,-3000.0,0.0002107,2]
[349180350,1737016251392,-500.0,0.00021073,2]
[349180351,1737016251402,-184.930898,0.00021077,2]
[349180352,1737016251411,-3000.0,0.0002108,2]
[349180353,1737016251421,-3000.0,0.0002109,2]
[349180354,1737016251431,-500.0,0.00021095,3]
[349180355,1737016251440,-500.0,0.00021095,3]
[349180356,1737016251450,-151.0,0.00021095,2]
[349180357,1737016251459,-535.32819104,0.00021095,3]
[349180358,1737016251469,-500.0,0.00021095,3]
[349180359,1737016251478,-964.82,0.00021095,3]
[349180360,1737016251488,-151.0,0.00021095,2]
[349180361,1737016251497,-500.0,0.00021095,3]
[349180362,1737016251507,-2173.0,0.00021095,3]
[349180363,1737016251517,-151.0,0.00021095,2]
[349180364,1737016251527,-547.14,0.00021095,3]
[349180365,1737016251537,-908.65,0.00021095,3]
[349180366,1737016251547,-500.0,0.00021095,3]
[349180367,1737016251556,-500.0,0.00021095,3]
[349180368,1737016251567,-694.8,0.00021095,3]
[349180369,1737016251576,-500.0,0.00021095,3]
[349180370,1737016251586,-500.0,0.00021095,3]
[349180371,1737016251595,-500.0,0.00021095,3]
[349180372,1737016251605,-500.0,0.00021095,3]
[349180373,1737016251614,-518.64,0.00021095,3]
[349180374,1737016251624,-500.0,0.00021095,3]
[349180375,1737016251633,-477.13951899,0.00021095,3]
[349180376,1737016251642,-822.02,0.00021095,3]
[349180377,1737016251652,-500.0,0.00021095,3]
[349180378,1737016251661,-500.0,0.00021095,3]
[349180379,1737016251671,-654.19,0.00021095,2]
[349180380,1737016251681,-500.0,0.00021095,3]
[349180381,1737016251691,-500.0,0.00021095,3]
[349180382,1737016251700,-532.07,0.00021095,3]
[349180383,1737016251710,-500.0,0.00021095,3]
[349180384,1737016251724,-3423.9,0.00021095,3]
[349180385,1737016251733,-1355.4,0.00021095,3]
[349180386,1737016251743,-500.0,0.00021095,3]
[349180387,1737016251752,-11423.92,0.00021095,3]
[349180388,1737016251764,-23282.56,0.00021095,3]
[349180389,1737016251773,-671.91,0.00021095,3]
[349180390,1737016251783,-459.76981614,0.00021095,3]
[349180391,1737016251794,-1061.4,0.00021095,3]
[349180392,1737016251804,-613.69,0.00021095,3]
[349180393,1737016251814,-548.68,0.00021095,3]
[349180394,1737016251824,-500.0,0.00021095,3]
[349180395,1737016251834,-500.0,0.00021095,3]
[349180396,1737016251843,-500.0,0.00021095,3]
[349180397,1737016251853,-740.28,0.00021095,3]
[349180398,1737016251863,-2359.74,0.00021095,3]
[349180399,1737016251873,-7640.34,0.00021095,3]
[349180400,1737016251882,-612.56,0.00021095,3]
[349180401,1737016251892,-1464.42,0.00021095,3]
[349180402,1737016251901,-1199.38,0.00021095,3]
[349180403,1737016251911,-2138.3,0.00021095,3]
[349180404,1737016251921,-3527.66,0.00021095,3]
[349180405,1737016251930,-500.0,0.00021095,3]
[349180406,1737016251940,-3028.79,0.00021095,3]
[349180407,1737016251950,-596.75,0.00021095,3]
[349180408,1737016251960,-794.43,0.00021095,3]
[349180409,1737016251970,-955.41,0.00021095,3]
[349180410,1737016251979,-585.22,0.00021095,3]
[349180411,1737016251989,-2630.12,0.00021095,3]
[349180412,1737016251998,-500.0,0.00021095,3]
[349180413,1737016252008,-1340.87,0.00021095,3]
[349180414,1737016252017,-3741.69,0.00021095,3]
[349180415,1737016252027,-20496.50983401,0.00021095,3]
[349180416,1737016252071,-3286.06754497,0.00021095,3]
[349180417,1737016252083,-519.00571498,0.00021095,3]
[349180418,1737016252095,-8949.62690604,0.00021095,3]
[349180419,1737016252105,-901.68,0.00021095,3]
[349180420,1737016252115,-14765.7,0.00021095,3]
[349180421,1737016252124,-837.12,0.00021095,3]
[349180422,1737016252134,-1363.77,0.00021095,3]
[349180423,1737016252143,-500.0,0.00021095,3]
[349180424,1737016252152,-891.67041716,0.00021095,3]
[349180425,1737016411460,160.0,0.00024736,120]
[349180426,1737016539218,291.165039,0.00013973,2]
[349180430,1737017087900,2198.41345435,0.00025,120]
[349180455,1737017370735,160.0,0.00024521,120]
[349180465,1737017430729,276.606787,0.00013973,2]
[349180466,1737017430765,160.0,0.00023455,120]
[349180522,1737017432340,-221.4568402,0.00018346,2]
[349180524,1737017432349,-300.0,0.00019164,2]
[349180526,1737017432359,-5349.85744755,0.00019164,2]
[349181098,1737017438263,-11745.14255245,0.00019164,2]
[349181099,1737017438272,-500.0,0.00019178,2]
[349181100,1737017438282,-500.0,0.00019178,2]
[349181101,1737017438291,-311.65554723,0.00019178,2]
[349181102,1737017438300,-4.95403225,0.00019178,2]
[349181103,1737017438313,-495.04596775,0.00019178,2]
[349181104,1737017438323,-814.87,0.00019178,2]
[349181105,1737017438332,-500.0,0.00019178,2]
[349181106,1737017438343,-500.0,0.00019178,2]
[349181107,1737017438352,-500.0,0.00019178,2]
[349181108,1737017438362,-500.0,0.00019178,2]
[349181109,1737017438371,-500.0,0.00019178,2]
[349181110,1737017438381,-160.63333706,0.00019178,2]
[349181111,1737017438393,-339.36666294,0.00019178,2]
[349181112,1737017438403,-500.0,0.00019178,2]
[349181113,1737017438413,-500.0,0.00019178,2]
[349181114,1737017438422,-185.63333706,0.00019178,2]
[349181115,1737017438438,-314.36666294,0.00019178,2]
[349181116,1737017438448,-500.0,0.00019178,2]
[349181117,1737017438458,-500.0,0.00019178,2]
[349181118,1737017438469,-500.0,0.00019178,2]
[349181119,1737017438478,-604.74,0.00019178,2]
[349181120,1737017438488,-500.0,0.00019178,2]
[349181121,1737017438498,-564.6,0.00019178,2]
[349181122,1737017438508,-500.0,0.00019178,2]
[349181123,1737017438518,-500.0,0.00019178,2]
[349181124,1737017438527,-500.0,0.00019178,2]
[349181125,1737017438540,-500.0,0.00019178,2]
[349181126,1737017438550,-1319.6,0.00019178,2]
[349181127,1737017438560,-500.0,0.00019178,2]
[349181128,1737017438569,-500.0,0.00019178,2]
[349181129,1737017438579,-500.0,0.00019178,2]
[349181130,1737017438590,-391.46223653,0.00019178,2]
[349181131,1737017438599,-500.0,0.00019178,2]
[349181132,1737017438609,-500.0,0.00019178,2]
[349181133,1737017438619,-8730.96,0.00019178,2]
[349181134,1737017438628,-500.0,0.00019178,2]
[349181135,1737017438639,-500.0,0.00019178,2]
[349181136,1737017438648,-500.0,0.00019178,2]
[349181137,1737017438658,-4334.68,0.00019178,2]
[349181138,1737017438668,-500.0,0.00019178,2]
[349181139,1737017438679,-500.0,0.00019178,2]
[349181140,1737017438688,-500.0,0.00019178,2]
[349181141,1737017438698,-500.0,0.00019178,2]
[349181142,1737017438709,-509.36382192,0.00019178,2]
[349181143,1737017438720,-500.0,0.00019178,2]
[349181144,1737017438729,-909.54,0.00019178,2]
[349181145,1737017438739,-569.99,0.00019178,2]
[349181146,1737017438749,-500.0,0.00019178,2]
[349181147,1737017438759,-822.9,0.00019178,2]
[349181148,1737017438768,-1775.49105287,0.00019178,2]
[349181157,1737017440812,-964.68410168,0.00019178,2]
[349181176,1737017443306,-335.93484545,0.00019178,2]
[349181177,1737017443318,-204.51298909,0.00019178,2]
[349181178,1737017443329,-500.0,0.00019178,2]
[349181179,1737017443340,-500.0,0.00019178,2]
[349181180,1737017443351,-500.0,0.00019178,2]
[349181181,1737017443362,-500.0,0.00019178,2]
[349181182,1737017443373,-500.0,0.00019178,2]
[349181183,1737017443383,-500.0,0.00019178,2]
[349181184,1737017443393,-500.0,0.00019178,2]
[349181185,1737017443403,-1363.2,0.00019178,2]
[349181186,1737017443413,-1016.09,0.00019178,2]
[349181187,1737017443423,-5114.89565908,0.00019178,2]
[349181223,1737017446338,-1483.656,0.00019178,2]
[349181224,1737017550741,160.0,0.00024687,120]
[349181225,1737017556473,1000.0,0.00025,120]
[349181226,1737017557641,7708.09,0.00025,120]
[349181228,1737017611309,160.0,0.00023762,120]
[349181240,1737018504990,262.776447,0.00013973,2]
[349181294,1737018632509,-211.05195539,0.00017371,2]
[349181295,1737018632518,-3263.0402439,0.00017547,2]
[349181296,1737018632528,-250.0,0.0001761,2]
[349181298,1737018632538,-523.9716471,0.00017634,2]
[349181299,1737018632548,-226.6287831,0.00017663,2]
[349181301,1737018632558,-5372.8071553,0.00017787,2]
[349181303,1737018632568,-1909.0,0.0001793,2]
[349181305,1737018632577,-300.0,0.0001793,2]
[349181307,1737018632587,-1383.5612328,0.00017932,2]
[349181309,1737018632597,-161.271296,0.00018256,2]
[349181310,1737018632606,-1000.0,0.00019,19]
[349181312,1737018632615,-176.22688914,0.00019078,2]
[349181314,1737018632625,-164.15322806,0.00019078,2]
[349181316,1737018632635,-305.98301549,0.00019131,2]
[349181318,1737018632644,-309.64493397,0.00019173,2]
[349181320,1737018632654,-501.08916729,0.00019173,2]
[349181322,1737018632664,-501.6190462,0.00019173,2]
[349181324,1737018632676,-500.0,0.00019173,2]
[349181326,1737018632696,-163.10399109,0.00019173,2]
[349181328,1737018632711,-207.99231028,0.00019173,2]
[349181330,1737018632721,-642.98576511,0.00019173,2]
[349181332,1737018632731,-21050.66507012,0.00019177,5]
[349181334,1737018632743,-334.93525348,0.00019177,5]
[349181337,1737018632756,-352.22271196,0.00019177,5]
[349181339,1737018632774,-3810.05870749,0.00019177,5]
[349181341,1737018632784,-115732.51966119,0.00019178,5]
[349181344,1737018632796,-500.0,0.00019178,2]
[349181346,1737018632805,-500.0,0.00019178,2]
[349181348,1737018632816,-500.0,0.00019178,2]
[349181349,1737018632826,-1052.54,0.00019178,2]
[349181352,1737018632837,-500.0,0.00019178,2]
[349181353,1737018632847,-500.0,0.00019178,2]
[349181356,1737018632857,-500.0,0.00019178,2]
[349181358,1737018632868,-500.0,0.00019178,2]
[349181360,1737018632878,-500.0,0.00019178,2]
[349181362,1737018632887,-500.0,0.00019178,2]
[349181363,1737018632897,-500.0,0.00019178,2]
[349181365,1737018632907,-500.0,0.00019178,2]
[349181367,1737018632916,-262.29632673,0.00019178,2]
[349181369,1737018632926,-500.0,0.00019178,2]
[349181371,1737018632935,-500.0,0.00019178,2]
[349181373,1737018632946,-500.0,0.00019178,2]
[349181376,1737018632956,-500.0,0.00019178,2]
[349181377,1737018632966,-500.0,0.00019178,2]
[349181380,1737018632977,-500.0,0.00019178,2]
[349181382,1737018632987,-500.0,0.00019178,2]
[349181383,1737018632995,-500.0,0.00019178,2]
[349181385,1737018633005,-253.03024554,0.00019178,2]
[349181387,1737018633015,-622.85,0.00019178,2]
[349181389,1737018633025,-500.0,0.00019178,2]
[349181391,1737018633034,-500.0,0.00019178,2]
[349181394,1737018633047,-500.0,0.00019178,2]
[349181396,1737018633057,-677.7,0.00019178,2]
[349181398,1737018633067,-500.0,0.00019178,2]
[349181400,1737018633077,-500.0,0.00019178,2]
[349181402,1737018633087,-500.0,0.00019178,2]
[349181404,1737018633097,-5670.8,0.00019178,2]
[349181406,1737018633109,-500.0,0.00019178,2]
[349181408,1737018633121,-11277.49,0.00019178,2]
[349181410,1737018633132,-1757.93,0.00019178,2]
[349181413,1737018633142,-620.9527886,0.00019178,2]
[349181414,1737018633153,-530.7,0.00019178,2]
[349181416,1737018633163,-500.0,0.00019178,2]
[349181418,1737018633174,-500.0,0.00019178,2]
[349181421,1737018633185,-500.0,0.00019178,2]
[349181423,1737018633197,-500.0,0.00019178,2]
[349181425,1737018633207,-500.0,0.00019178,2]
[349181426,1737018633218,-500.0,0.00019178,2]
[349181428,1737018633227,-500.0,0.00019178,2]
[349181430,1737018633238,-500.0,0.00019178,2]
[349181433,1737018633248,-1211.8,0.00019178,2]
[349181435,1737018633258,-1097.57,0.00019178,2]
[349181448,1737018633405,-500.0,0.00019178,2]
[349181450,1737018633419,-4307.37,0.00019178,2]
[349181452,1737018633433,-517.36145304,0.00019178,2]
[349181455,1737018633443,-770.96,0.00019178,2]
[349181456,1737018633454,-500.0,0.00019178,2]
[349181458,1737018633464,-605.55,0.00019178,2]
[349181460,1737018633475,-500.0,0.00019178,2]
[349181462,1737018633486,-1821.29,0.00019178,2]
[349181464,1737018633497,-16945.95,0.00019178,2]
[349181466,1737018633507,-500.0,0.00019178,2]
[349181468,1737018633519,-500.0,0.00019178,2]
[349181470,1737018633531,-500.0,0.00019178,2]
[349181473,1737018633545,-500.0,0.00019178,2]
[349181474,1737018633555,-500.0,0.00019178,2]
[349181476,1737018633567,-1354.64,0.00019178,2]
[349181478,1737018633577,-500.0,0.00019178,2]
[349181480,1737018633588,-7572.35,0.00019178,2]
[349181482,1737018633599,-1582.48,0.00019178,2]
[349181484,1737018633610,-500.0,0.00019178,2]
[349181486,1737018633619,-1870.84,0.00019178,2]
[349181488,1737018633629,-500.0,0.00019178,2]
[349181490,1737018633639,-500.0,0.00019178,2]
[349181492,1737018633649,-500.0,0.00019178,2]
[349181494,1737018633660,-500.0,0.00019178,2]
[349181496,1737018633670,-702.72,0.00019178,2]
[349181498,1737018633681,-5406.88,0.00019178,2]
[349181500,1737018633692,-500.0,0.00019178,2]
[349181502,1737018633703,-500.0,0.00019178,2]
[349181504,1737018633713,-4804.55,0.00019178,2]
[349181506,1737018633724,-529.38,0.00019178,2]
[349181508,1737018633734,-981.37,0.00019178,2]
[349181510,1737018633744,-772.52,0.00019178,2]
[349181512,1737018633754,-500.0,0.00019178,2]
[349181514,1737018633764,-1155.17,0.00019178,2]
[349181516,1737018633774,-500.0,0.00019178,2]
[349181518,1737018633783,-203.623993,0.00019178,2]
[349181520,1737018633794,-158.39,0.00019178,2]
[349181522,1737018633805,-500.0,0.00019314,2]
[349181524,1737018633815,-279.42243907,0.00019314,2]
[349181526,1737018633825,-500.0,0.00019315,3]
[349181528,1737018633835,-500.0,0.00019315,3]
[349181530,1737018633845,-452.82935033,0.00019315,3]
[349181532,1737018633855,-1052.54,0.00019315,3]
[349181534,1737018633865,-500.0,0.00019315,3]
[349181536,1737018633875,-500.0,0.00019315,3]
[349181538,1737018633885,-500.0,0.00019315,3]
[349181540,1737018633896,-500.0,0.00019315,3]
[349181542,1737018633907,-500.0,0.00019315,3]
[349181544,1737018633918,-500.0,0.00019315,3]
[349181546,1737018633928,-500.0,0.00019315,3]
[349181548,1737018633939,-500.0,0.00019315,3]
[349181550,1737018633949,-500.0,0.00019315,3]
[349181552,1737018633959,-500.0,0.00019315,3]
[349181554,1737018633969,-500.0,0.00019315,3]
[349181556,1737018633979,-500.0,0.00019315,3]
[349181558,1737018633990,-500.0,0.00019315,3]
[349181560,1737018634000,-500.0,0.00019315,3]
[349181562,1737018634009,-608.68,0.00019315,3]
[349181564,1737018634020,-500.0,0.00019315,3]
[349181566,1737018634032,-622.85,0.00019315,2]
[349181568,1737018634044,-500.0,0.00019315,3]
[349181570,1737018634054,-500.0,0.00019315,3]
[349181572,1737018634063,-500.0,0.00019315,3]
[349181574,1737018634073,-677.7,0.00019315,3]
[349181576,1737018634083,-500.0,0.00019315,3]
[349181578,1737018634092,-500.0,0.00019315,3]
[349181580,1737018634103,-500.0,0.00019315,3]
[349181582,1737018634113,-5670.8,0.00019315,3]
[349181584,1737018634123,-500.0,0.00019315,3]
[349181586,1737018634134,-11277.49,0.00019315,3]
[349181588,1737018634144,-1757.93,0.00019315,3]